bitfinex/quotes_SOLUSD_20260308
["timestamp","ask_amount","ask_price","bid_price","bid_amount"]
[1772959495735,4.64402045,83.02,82.985,0.5]
[1772959497038,12.04195416,83.043,82.986,0.5]
[1772959497244,12.04136796,83.048,82.988,0.28432314]
[1772959497451,12.04136796,83.048,82.987,3.69383402]
[1772959497452,4.64402045,83.03,82.989,0.5]
[1772959498156,12.04398463,83.029,82.991,0.5]
[1772959500146,4.64402045,83.02,82.993,0.5]
[1772959500640,0.14216157,83.047,82.993,0.5]
[1772959500958,4.64402045,83.05,82.993,0.5]
[1772959501131,4.64402045,83.03,82.993,0.5]
[1772959501553,4.64402045,83.02,82.993,0.5]
[1772959502139,12.04543538,83.019,82.995,0.5]
[1772959504140,42.15411868,83.029,82.995,0.5]
[1772959504851,42.15411868,83.029,82.997,0.5]
[1772959507863,60.19220615,83.068,83.022,0.5]
[1772959508241,0.45664937,83.049,82.998,42.16969082]
[1772959508955,0.45664937,83.047,82.987,102.42568112]
[1772959509161,0.45664937,83.047,82.991,0.28432314]
[1772959510163,0.45664937,83.045,82.995,0.46530851]
[1772959512955,0.45664937,83.043,82.997,0.46530851]
[1772959513362,12.04180916,83.044,82.997,0.46530851]
[1772959513667,12.49845853,83.044,82.997,0.46530851]
[1772959514060,0.45664937,83.044,82.997,0.46530851]
[1772959514272,12.04124444,83.048,82.998,0.46530851]
[1772959514955,0.45664937,83.052,83.001,0.46530851]
[1772959515151,12.49483449,83.069,83.004,0.46530851]
[1772959515475,0.45664937,83.049,83.004,0.46530851]
[1772959516970,0.45664937,83.047,83.006,0.46530851]
[1772959519764,0.45664937,83.047,83.008,0.46530851]
[1772959520059,34.74285212,83.06,83.008,0.46530851]
[1772959520060,0.45664937,83.045,83.008,0.46530851]
[1772959521849,0.45664937,83.045,83.01,0.46530851]
[1772959523178,0.45664937,83.045,83.012,0.46530851]
[1772959524380,30.09883167,83.06,83.012,0.46530851]
[1772959524381,0.45664937,83.056,83.013,0.46530851]
[1772959524578,12.49683965,83.056,83.013,0.46530851]
[1772959524754,0.45664937,83.055,83.013,0.46530851]
[1772959524961,0.45664937,83.055,82.919,48.23952762]
[1772959524962,4.64402045,83.03,83.0,0.46530851]
[1772959525174,0.45664937,83.029,83.002,0.46530851]
[1772959525369,0.45664937,83.027,83.002,0.46530851]
[1772959527977,0.45664937,83.027,83.004,0.46530851]
[1772959528474,12.50013346,83.033,83.004,0.46530851]
[1772959528672,0.45664937,83.033,83.004,0.46530851]
[1772959529385,0.2545136,83.208,83.005,0.46530851]
[1772959529386,0.45664937,83.057,83.005,0.46530851]
[1772959530187,0.45664937,83.049,83.007,0.46530851]
[1772959533485,0.46261559,83.039,83.009,0.46537891]
[1772959533865,0.46261559,83.039,83.008,12.04703161]
[1772959534170,0.46261559,83.039,83.009,0.46537891]
[1772959535768,42.14430208,83.048,83.01,12.04674135]
[1772959535769,0.46261559,83.037,83.01,12.04674135]
[1772959537585,0.46261559,83.035,83.01,0.46537891]
[1772959537980,0.46261559,83.035,82.982,0.46537891]
[1772959538589,12.04296931,83.036,82.982,0.46537891]
[1772959538799,0.46261559,83.04,82.982,0.46537891]
[1772959540488,0.46261559,83.038,82.985,0.46537891]
[1772959542290,0.46261559,83.055,82.99,0.46537891]
[1772959542587,0.46261559,83.055,82.991,0.46537891]
[1772959542984,0.46261559,83.049,82.991,0.46537891]
[1772959543808,0.46261559,83.049,82.993,0.28432314]
[1772959543991,0.46261559,83.049,82.994,0.46537891]
[1772959544790,0.46261559,83.047,82.994,0.46537891]
[1772959546488,0.46261559,83.045,82.996,0.46537891]
[1772959548996,0.46261559,83.043,82.998,0.46537891]
[1772959549791,0.46261559,83.043,82.999,0.46537891]
[1772959551377,12.04108417,83.049,83.002,0.46537891]
[1772959551595,0.46261559,83.048,83.002,0.46537891]
[1772959554086,0.46261559,83.039,83.003,12.0477573]
[1772959554401,0.46261559,83.039,83.004,0.46537891]
[1772959555804,0.46261559,83.037,83.006,0.46537891]
[1772959556602,0.46261559,83.037,83.005,12.04746702]
[1772959557103,0.46261559,83.037,83.005,12.51284593]
[1772959557603,0.46261559,83.037,83.006,0.46537891]
[1772959558203,0.46261559,83.035,83.008,0.46537891]
[1772959559583,12.04166415,83.045,83.01,0.46537891]
[1772959560190,12.50427974,83.045,83.01,0.46537891]
[1772959561286,0.46261559,83.058,83.01,0.46537891]
[1772959561486,0.46261559,83.058,83.009,42.16410268]
[1772959561487,0.46261559,83.057,83.014,0.46537891]
[1772959562707,0.47547726,83.069,83.014,0.46537891]
[1772959563823,12.03833004,83.068,83.016,0.48486921]
[1772959564708,12.03833004,83.068,83.019,0.45998785]
[1772959564906,0.47547726,83.069,83.02,3.69383402]
[1772959565089,0.47547726,83.069,83.022,0.45998785]
[1772959566211,0.47547726,83.069,83.031,0.45998785]
[1772959566705,0.47547726,83.069,83.032,42.15242315]
[1772959567004,0.47547726,83.069,83.033,0.45998785]
[1772959568503,0.4541587,83.067,83.033,0.45998785]
[1772959568720,0.4541587,83.059,83.02,30.11288195]
[1772959569008,0.4541587,83.059,83.021,12.0451452]
[1772959570093,0.4541587,83.059,83.021,42.15800821]
[1772959570510,0.4541587,83.059,83.021,12.0451452]
[1772959570695,0.4541587,83.057,83.021,12.0451452]
[1772959571017,0.4541587,83.057,83.022,0.45998785]
[1772959572911,12.04006935,83.056,83.023,12.04485504]
[1772959573207,0.4541587,83.055,83.024,0.45998785]
[1772959574920,0.4541587,83.055,83.026,0.45998785]
[1772959576517,0.4541587,83.055,83.027,12.04427475]
[1772959576723,0.4541587,83.055,83.028,0.45998785]
[1772959578597,0.4541587,83.055,83.03,0.45998785]
[1772959581420,0.4541587,83.055,83.032,0.45998785]
[1772959581724,12.49358258,83.061,83.032,0.45998785]
[1772959582025,0.4541587,83.06,83.032,0.45998785]
[1772959582915,0.4541587,83.059,83.032,0.45998785]
[1772959585024,0.4541587,83.057,83.034,0.45998785]
[1772959587431,0.28432314,83.083,83.034,0.45998785]
[1772959587604,0.4541587,83.078,83.036,0.45998785]
[1772959588004,4.64255101,83.06,83.027,12.04427475]
[1772959588210,0.4541587,83.049,83.027,12.04427475]
[1772959588409,0.4541587,83.049,83.021,12.50513175]
[1772959589907,0.4541587,83.047,83.021,12.50513175]
[1772959590824,0.4541587,83.047,83.022,0.45998785]
[1772959591913,0.4541587,83.047,83.023,12.04485504]
[1772959592232,0.4541587,83.045,83.024,0.45998785]
[1772959593434,0.4541587,83.045,83.023,12.04485504]
[1772959593625,0.4510135,83.039,83.008,0.49051183]
[1772959594030,4.64255101,83.04,83.009,12.53739831]
[1772959594031,0.4510135,83.037,83.009,12.53739831]
[1772959595722,12.04267925,83.038,82.995,0.49051183]
[1772959595723,0.4510135,83.029,82.995,0.49051183]
[1772959595924,0.4510135,83.027,82.996,12.04877343]
[1772959596121,0.4510135,83.027,82.997,0.49051183]
[1772959599232,0.4510135,83.025,82.999,0.49051183]
[1772959600631,0.4510135,83.032,83.002,0.49051183]
[1772959601718,0.4510135,83.059,83.002,0.49051183]
[1772959602715,0.4510135,83.057,83.005,0.49051183]
[1772959604337,12.0391558,83.063,83.005,0.49051183]
[1772959604532,0.4510135,83.069,83.007,0.28432314]
[1772959604717,0.4510135,83.069,83.011,0.49051183]
[1772959605729,0.28432314,83.093,83.011,0.49051183]
[1772959605730,12.03529116,83.089,83.015,0.49051183]
[1772959605931,0.1,83.12,83.021,0.49051183]
[1772959606131,16.77686412,83.1,83.025,3.69383402]
[1772959606435,0.1,83.1,83.027,0.49051183]
[1772959606637,12.03396646,83.099,83.027,0.49051183]
[1772959606934,12.03396646,83.099,83.032,0.49051183]
[1772959607137,12.03396646,83.099,83.033,0.49051183]
[1772959607535,0.1,83.1,83.037,3.69383402]
[1772959607736,0.1,83.12,83.05,0.49051183]
[1772959608037,0.1,83.12,83.055,0.49051183]
[1772959608239,0.1,83.12,83.056,0.49051183]
[1772959608439,0.4510135,83.119,83.056,0.49051183]
[1772959609138,0.4510135,83.119,83.062,0.49051183]
[1772959609339,0.1,83.12,83.062,0.49051183]
[1772959610630,0.5510135,83.12,83.068,0.49051183]
[1772959611642,0.5510135,83.12,83.071,0.49051183]
[1772959612027,0.4510135,83.119,83.071,0.49051183]
[1772959613824,0.4510135,83.117,83.073,0.49051183]
[1772959614140,34.82004334,83.12,83.073,0.49051183]
[1772959614141,0.1,83.12,83.073,0.49051183]
[1772959614340,0.1,83.12,83.074,0.49051183]
[1772959614937,0.5510135,83.12,83.074,0.49051183]
[1772959616229,0.5510135,83.12,83.076,0.49051183]
[1772959616435,0.1,83.12,83.076,0.49051183]
[1772959617745,0.1,83.12,83.079,0.49051183]
[1772959618338,0.4510135,83.119,83.079,0.49051183]
[1772959619933,0.4510135,83.119,83.082,0.49051183]
[1772959620847,0.4510135,83.119,83.08,42.12806932]
[1772959620848,0.4510135,83.099,83.054,12.04035928]
[1772959621546,0.4510135,83.089,83.054,12.04035928]
[1772959622240,0.4510135,83.087,83.054,12.04035928]
[1772959623347,0.46940137,83.085,83.054,12.04035928]
[1772959623533,0.46940137,83.079,83.054,12.04035928]
[1772959623730,0.46940137,83.079,83.049,12.04100031]
[1772959623934,0.46940137,83.079,83.048,12.04108769]
[1772959624450,0.46940137,83.079,83.051,12.04068181]
[1772959624756,0.46940137,83.079,83.053,12.04050425]
[1772959627055,0.46940137,83.079,83.035,30.10767138]
[1772959627056,0.46940137,83.069,83.052,11.61111178]
[1772959627261,0.46940137,83.069,83.052,11.21111178]
[1772959627440,0.46940137,83.069,83.052,11.1116256]
[1772959629754,12.03833004,83.068,83.052,11.1116256]
[1772959630458,16.67674057,83.1,83.054,0.5]
[1772959630642,4.64304623,83.09,83.054,0.5]
[1772959631140,12.03528746,83.089,83.052,11.1116256]
[1772959631340,4.64304623,83.08,83.052,11.1116256]
[1772959631746,12.03528746,83.089,83.052,11.1116256]
[1772959631946,4.64304623,83.08,83.052,11.1116256]
[1772959632557,4.64304623,83.07,83.052,11.1116256]
[1772959633847,12.03818512,83.069,83.052,11.1116256]
[1772959634054,12.03818512,83.069,83.034,12.04313255]
[1772959634055,42.13364792,83.069,83.034,12.04313255]
[1772959634269,4.64304623,83.06,83.03,0.5]
[1772959635056,42.13364792,83.069,83.03,0.5]
[1772959636365,12.03818512,83.069,83.031,12.04369452]
[1772959636557,12.03818512,83.069,83.032,0.5]
[1772959638967,12.03818512,83.069,83.033,12.04340442]
[1772959639165,12.03818512,83.069,83.034,0.5]
[1772959640681,12.03675726,83.079,83.035,0.5]
[1772959641471,4.64304623,83.08,83.037,0.5]
[1772959643875,0.28432314,83.097,83.039,0.5]
[1772959644074,4.64304623,83.08,83.039,0.5]
[1772959644675,4.64304623,83.09,83.04,0.5]
[1772959645667,4.64304623,83.08,83.04,0.5]
[1772959646067,12.03673611,83.079,83.042,0.5]
[1772959646564,4.64304623,83.07,83.042,0.5]
[1772959646761,12.03673611,83.079,83.042,0.5]
[1772959648084,12.03673611,83.079,83.044,0.5]
[1772959650267,4.64304623,83.08,83.046,0.5]
[1772959652370,12.03673611,83.079,83.048,0.5]
[1772959654689,12.03673611,83.079,83.049,12.54108417]
[1772959655068,12.03673611,83.079,83.05,0.5]
[1772959659188,4.64304623,83.08,83.052,0.5]
[1772959661485,4.64304623,83.07,83.045,0.5]
[1772959662592,4.63970332,83.07,83.045,0.5]
[1772959664976,12.03818512,83.069,83.047,0.5]
[1772959667099,4.63970332,83.06,83.018,0.5]
[1772959670676,12.03963447,83.059,83.02,0.5]
[1772959671969,12.03963447,83.059,83.021,42.15800821]
[1772959672175,12.03963447,83.059,83.022,0.5]
[1772959673298,12.03963447,83.059,83.023,12.04485504]
[1772959673491,12.03963447,83.059,83.024,0.5]
[1772959678099,12.03963447,83.059,83.026,0.5]
[1772959681096,12.03963447,83.059,83.028,0.5]
[1772959683798,12.03963447,83.059,83.029,12.04398463]
[1772959684003,12.03963447,83.059,83.03,0.5]
[1772959687100,12.03963447,83.059,83.032,0.5]
[1772959689507,0.28432314,83.081,83.034,0.5]
[1772959689712,4.63970332,83.07,83.034,0.5]
[1772959689907,4.63970332,83.06,83.034,0.5]
[1772959693094,12.03963447,83.059,83.034,0.5]
[1772959696712,4.63970332,83.04,83.018,0.5]
[1772959696914,4.63970332,83.04,83.014,0.5]
[1772959697224,4.63970332,83.03,83.003,0.5]
[1772959697519,4.63970332,83.04,83.003,0.5]
[1772959697695,42.13872066,83.059,83.004,0.5]
[1772959697893,4.63970332,83.05,83.004,0.5]
[1772959698219,12.04108417,83.049,83.005,42.16613457]
[1772959698398,12.04108417,83.049,83.006,0.5]
[1772959700421,4.63970332,83.04,83.008,0.5]
[1772959701017,42.14379461,83.049,83.008,0.5]
[1772959701316,4.63970332,83.04,83.008,0.5]
[1772959703500,12.04253423,83.039,83.01,0.5]
[1772959705196,12.04253423,83.039,83.012,0.5]
[1772959705921,42.1488698,83.039,83.007,12.04716449]
[1772959706102,4.63970332,83.03,83.007,12.04716449]
[1772959707225,12.04398463,83.029,83.007,12.04716449]
[1772959709729,12.04398463,83.029,83.007,0.5]
[1772959710313,12.04398463,83.029,83.003,12.0477573]
[1772959711125,4.63970332,83.02,83.002,8.26382288]
[1772959712135,42.1539462,83.029,83.002,8.26382288]
[1772959712331,4.63970332,83.03,83.003,0.5]
[1772959713814,4.63970332,83.04,83.003,12.0477573]
[1772959714015,4.63970332,83.04,83.004,0.5]
[1772959714228,4.63970332,83.03,83.004,0.5]
[1772959715742,4.63970332,83.03,83.002,8.26382288]
[1772959715743,12.04398463,83.029,83.006,0.5]
[1772959718838,0.28432314,83.048,83.008,0.5]
[1772959719044,4.63970332,83.05,83.008,0.5]
[1772959720637,4.63970332,83.03,83.002,8.26382288]
[1772959720836,4.63970332,83.02,83.002,8.26382288]
[1772959721038,12.04543538,83.019,83.002,8.26382288]
[1772959721535,12.04543538,83.019,83.003,0.5]
[1772959721742,12.04412969,83.028,83.004,0.5]
[1772959722238,4.63970332,83.02,83.004,0.5]
[1772959722730,4.63970332,83.02,83.002,8.26382288]
[1772959723236,12.04543538,83.019,83.002,8.26382288]
[1772959725144,4.64538323,83.01,83.002,8.26382288]
[1772959725324,4.64538323,83.02,83.003,0.5]
[1772959725523,16.69078634,83.02,83.002,8.76382288]
[1772959725742,16.69078634,83.02,83.003,0.5]
[1772959729742,16.69078634,83.02,83.002,8.26382288]
[1772959730630,0.28432314,83.027,83.003,0.5]
[1772959731143,0.28432314,83.027,82.952,3.69383402]
[1772959731144,4.64538323,83.01,82.973,0.5]
[1772959733038,12.04688648,83.009,82.974,0.5]
[1772959734650,12.04688648,83.009,82.976,0.5]
[1772959735350,0.14216157,83.027,82.976,0.5]
[1772959735351,12.04543538,83.019,82.976,0.5]
[1772959736452,42.15902383,83.019,82.976,0.5]
[1772959737138,42.15902383,83.019,82.978,0.5]
[1772959738538,4.64538323,83.0,82.973,0.5]
[1772959739651,12.04833793,82.999,82.973,0.5]
[1772959740942,12.04777604,83.003,82.975,0.5]
[1772959746155,12.04616088,83.014,82.977,0.5]
[1772959747961,4.64538323,83.01,82.979,0.5]
[1772959750165,12.04688648,83.009,82.98,12.05109664]
[1772959750362,12.04688648,83.009,82.981,0.5]
[1772959751464,12.04688648,83.009,82.983,0.5]
[1772959753260,12.04688648,83.009,82.985,0.5]
[1772959758873,4.64538323,83.0,82.984,12.05051576]
[1772959759870,4.64538323,83.0,82.978,12.55124631]
[1772959760772,16.69370876,83.0,82.979,0.5]
[1772959772954,4.64538323,83.01,82.979,0.5]
[1772959773978,4.64538323,83.01,82.981,0.5]
[1772959775373,12.04688648,83.009,82.982,12.05080619]
[1772959775675,12.04688648,83.009,82.983,0.5]
[1772959780682,12.04688648,83.009,82.985,0.5]
[1772959796483,42.16410268,83.009,82.985,0.5]
[1772959797399,42.16410268,83.009,82.977,0.5]
[1772959798905,42.16410268,83.009,82.978,0.5]
[1772959805315,4.64741629,83.0,82.978,0.5]
[1772959806406,42.16410268,83.009,82.964,0.5]
[1772959806407,4.64741629,82.99,82.964,0.5]
[1772959806589,4.64741629,83.0,82.964,0.5]
[1772959807401,4.64741629,83.0,82.963,8.21123105]
[1772959807402,4.64741629,82.99,82.966,0.5]
[1772959810216,12.04978973,82.989,82.968,0.5]
[1772959815913,12.04978973,82.989,82.963,8.21123105]
[1772959815914,4.64741629,82.98,82.964,0.5]
[1772959817918,12.05124188,82.979,82.964,0.5]
[1772959819119,4.64741629,82.98,82.964,0.5]
[1772959819513,16.69865627,82.98,82.964,0.5]
[1772959820522,16.69865627,82.98,82.963,8.21123105]
[1772959820726,4.64741629,82.97,82.963,8.21123105]
[1772959821223,4.64741629,82.97,82.951,0.5]
[1772959822947,12.05269437,82.969,82.951,0.5]
[1772959830547,2.0487361,82.998,82.954,0.5]
[1772959830548,30.12364321,82.992,82.954,0.5]
[1772959830733,4.64741629,82.99,82.954,0.5]
[1772959831850,4.64741629,82.99,82.956,0.5]
[1772959832037,12.04978973,82.989,82.956,0.5]
[1772959834159,12.04978973,82.989,82.957,12.05443784]
[1772959834459,4.64741629,82.98,82.958,0.5]
[1772959836253,12.05124188,82.979,82.958,0.5]
[1772959836454,4.64741629,82.97,82.958,0.5]
[1772959841164,4.64741629,82.98,82.958,0.5]
[1772959843156,12.05124188,82.979,82.958,0.5]
[1772959845878,4.64741629,82.98,82.95,0.2]
[1772959845879,4.64741629,82.99,82.96,0.5]
[1772959846583,4.64901456,82.99,82.96,0.5]
[1772959846778,12.04978973,82.989,82.961,12.05385663]
[1772959846978,12.04978973,82.989,82.962,0.5]
[1772959851679,12.04978973,82.989,82.961,12.05385663]
[1772959851680,4.64901456,82.99,82.964,0.5]
[1772959852981,12.04862826,82.997,82.964,0.5]
[1772959853168,2.0487361,82.998,82.964,0.5]
[1772959853571,2.0487361,82.998,82.966,0.5]
[1772959856979,2.0487361,82.998,82.968,0.5]
[1772959857582,2.0487361,82.998,82.968,0.49258956]
[1772959857583,1.6487361,82.998,82.968,0.49258956]
[1772959857781,0.2,83.014,82.968,0.49258956]
[1772959858991,12.046306,83.013,82.968,0.49258956]
[1772959861702,0.46003697,83.013,82.97,0.49258956]
[1772959862183,0.46003697,82.999,82.97,0.49258956]
[1772959862386,0.46003697,82.989,82.951,12.05530976]
[1772959862704,0.46003697,82.989,82.951,42.19358416]
[1772959863576,0.49818284,82.988,82.951,42.19358416]
[1772959863776,0.49818284,82.988,82.951,12.05530976]
[1772959864294,0.49818284,82.979,82.952,0.4650373]
[1772959873203,12.05138711,82.978,82.953,12.0550191]
[1772959873391,0.49818284,82.977,82.954,0.4650373]
[1772959876299,0.49818284,82.977,82.956,0.4650373]
[1772959878003,0.49818284,82.985,82.956,0.4650373]
[1772959883494,0.49818284,82.985,82.958,0.4650373]
[1772959886324,0.49818284,82.983,82.96,0.4650373]
[1772959887198,0.49818284,82.981,82.962,0.4650373]
[1772959890622,0.49818284,82.981,82.963,12.05356604]
[1772959890819,0.49818284,82.981,82.964,0.4650373]
[1772959892423,0.45352719,83.007,82.964,0.4650373]
[1772959892853,0.45352719,82.999,82.966,0.48728743]
[1772959893912,0.45352719,82.997,82.968,0.48728743]
[1772959897026,12.04877343,82.996,82.969,12.05269437]
[1772959897323,0.45352719,82.995,82.97,0.48728743]
[1772959898913,0.45352719,82.993,82.97,0.48728743]
[1772959900527,0.45352719,82.991,82.97,0.48728743]
[1772959903228,0.45352719,82.989,82.952,0.48728743]
[1772959903417,0.45352719,82.979,82.952,0.48728743]
[1772959904713,0.45352719,82.979,82.951,12.05530976]
[1772959905216,0.45352719,82.977,82.951,12.54259719]
[1772959905820,0.45352719,82.977,82.952,0.48728743]
[1772959907635,0.45352719,82.975,82.952,0.48728743]
[1772959908137,12.05167759,82.976,82.93,0.68728743]
[1772959908138,4.65014617,82.96,82.93,0.68728743]
[1772959908440,0.45352719,82.959,82.941,12.05676324]
[1772959908639,0.45352719,82.959,82.941,12.54405067]
[1772959908941,0.45352719,82.959,82.942,0.48728743]
[1772959909440,0.45352719,82.959,82.943,12.54375994]
[1772959909816,0.45352719,82.959,82.943,0.48728743]
[1772959911339,0.45352719,82.959,82.945,0.48728743]
[1772959920149,0.45352719,82.979,82.947,0.48728743]
[1772959922735,0.467981,82.977,82.949,0.45995827]
[1772959932366,0.46031238,82.975,82.951,0.47421585]
[1772959932861,0.46031238,82.975,82.942,0.47421585]
[1772959933057,0.46031238,82.969,82.941,12.05676324]
[1772959934071,0.46031238,82.959,82.933,12.05783954]
[1772959934767,0.46031238,82.957,82.933,0.47421585]
[1772959934952,0.46031238,82.962,82.931,0.47421585]
[1772959936973,0.46031238,82.962,82.933,0.47421585]
[1772959937371,0.46031238,82.96,82.933,0.47421585]
[1772959939169,0.46031238,82.958,82.933,0.47421585]
[1772959939372,0.46031238,82.958,82.934,0.47421585]
[1772959940664,12.51475022,82.957,82.936,0.47421585]
[1772959941976,0.46031238,82.956,82.936,0.47421585]
[1772959943278,0.46031238,82.955,82.936,0.47421585]
[1772959947782,0.46031238,82.955,82.937,0.47421585]
[1772959948284,0.46031238,82.96,82.937,0.47421585]
[1772959951188,0.46031238,82.958,82.939,0.47421585]
[1772959951383,12.05353721,82.964,82.939,0.47421585]
[1772959952979,12.05138711,82.978,82.939,0.47421585]
[1772959953484,0.48049556,82.975,82.941,0.49043776]
[1772959956689,12.05196808,82.974,82.943,0.49043776]
[1772959957079,0.48049556,82.973,82.943,0.49043776]
[1772959960702,0.48049556,82.971,82.945,0.49043776]
[1772959962181,0.48049556,82.971,82.946,12.05603645]
[1772959962380,0.48049556,82.971,82.947,0.49043776]
[1772959965302,0.48049556,82.971,82.948,12.05574576]
[1772959965497,0.48049556,82.971,82.949,0.49043776]
[1772959965999,0.48049556,82.978,82.949,0.49043776]
[1772959966308,0.48049556,82.977,82.949,0.49043776]
[1772959967585,0.48049556,82.975,82.947,0.49043776]
[1772959967790,0.48049556,82.975,82.932,0.49043776]
[1772959970715,0.48049556,82.973,82.934,0.49043776]
[1772959971509,0.48049556,82.969,82.934,0.49043776]
[1772959973509,0.48049556,82.967,82.936,0.49043776]
[1772959975698,0.48049556,82.965,82.938,0.49043776]
[1772959977091,0.48049556,82.974,82.938,0.49043776]
[1772959977319,0.48049556,82.973,82.938,0.49043776]
[1772959980718,12.53247864,82.974,82.94,0.49043776]
[1772959981020,0.48049556,82.974,82.94,0.49043776]
[1772959987224,0.48049556,82.974,82.941,42.19867134]
[1772959987409,0.48049556,82.974,82.942,0.47102301]
[1772959988712,60.52324365,83.003,82.93,0.2]
[1772959988713,0.47161207,82.991,82.945,0.47102301]
[1772959989710,0.47161207,82.989,82.947,0.47102301]
[1772959991131,0.47161207,82.989,82.949,0.47102301]
[1772959991332,0.47161207,82.987,82.949,0.47102301]
[1772959991639,0.47161207,82.992,82.95,0.47102301]
[1772959994917,0.47161207,83.002,82.95,0.47102301]
[1772959995124,0.47161207,83.008,82.953,0.47102301]
[1772959995318,0.47161207,83.008,82.956,0.47102301]
[1772959995629,0.47161207,83.008,82.959,0.47102301]
[1772959995838,0.47161207,83.008,82.962,0.47102301]
[1772959996232,0.47161207,83.008,82.961,0.28432314]
[1772959996233,0.47161207,83.017,82.964,0.47102301]
[1772959996414,0.47161207,83.014,82.965,0.47102301]
[1772959996621,0.47161207,83.013,82.965,0.47102301]
[1772959997236,0.47161207,83.011,82.968,0.47102301]
[1772959999027,0.47161207,83.016,82.971,0.47102301]
[1772959999218,0.47161207,83.016,82.97,0.28432314]
[1772959999219,0.47161207,83.016,82.974,0.47102301]
[1772960002339,0.47161207,83.016,82.976,0.47102301]
[1772960005628,0.47161207,83.016,82.978,0.47102301]
[1772960007136,0.47161207,83.014,82.978,0.47102301]
[1772960007744,0.47161207,83.014,82.98,0.47102301]
[1772960010246,0.47161207,83.014,82.982,0.47102301]
[1772960012336,0.47161207,83.014,82.984,0.47102301]
[1772960012642,0.47161207,83.014,82.985,0.47102301]
[1772960015042,0.47161207,83.014,82.987,0.45493371]
[1772960017054,0.45852228,83.019,82.989,0.45493371]
[1772960019649,0.45852228,83.032,82.992,0.45493371]
[1772960022868,0.45852228,83.03,82.995,0.45493371]
[1772960025169,0.45852228,83.03,82.996,42.17070701]
[1772960025465,0.45852228,83.03,82.997,0.45493371]
[1772960027450,0.45852228,83.03,82.998,42.16969082]
[1772960027767,0.45852228,83.03,82.999,0.45493371]
[1772960028543,0.45852228,83.03,83.001,0.45493371]
[1772960029670,0.45852228,83.03,83.003,0.45493371]
[1772960030968,0.45852228,83.03,82.985,1.20503705]
[1772960030969,0.45852228,83.028,82.987,0.45493371]
[1772960031556,0.45852228,83.028,82.989,0.45493371]
[1772960032648,0.45852228,83.028,82.991,0.28432314]
[1772960032849,0.45852228,83.028,82.992,0.45493371]
[1772960033662,0.45852228,83.041,82.992,0.45493371]
[1772960034871,0.45852228,83.039,82.995,0.45493371]
[1772960040479,4.74283026,83.05,82.998,0.45493371]
[1772960040480,0.45852228,83.045,82.998,0.45493371]
[1772960040774,0.45852228,83.045,83.001,0.45493371]
[1772960041964,0.1,83.05,83.004,0.45493371]
[1772960041965,0.45852228,83.049,83.004,0.45493371]
[1772960042578,0.45852228,83.049,83.007,0.49721395]
[1772960042879,0.48604423,83.047,83.007,0.49721395]
[1772960044962,12.04151915,83.046,83.008,12.04703161]
[1772960045159,0.47434105,83.045,83.009,0.47989379]
[1772960047666,0.47434105,83.043,83.01,12.04674135]
[1772960049064,0.47434105,83.041,83.01,0.47989379]
[1772960049979,0.47434105,83.039,83.011,12.04659623]
[1772960050495,0.47434105,83.039,83.011,12.52649002]
[1772960051560,0.47434105,83.039,83.007,0.47989379]
[1772960052279,0.47434105,83.037,83.002,0.47989379]
[1772960052580,0.47434105,83.037,82.992,0.47989379]
[1772960052760,0.47434105,83.042,82.993,0.47989379]
[1772960053779,0.47434105,83.041,82.993,0.47989379]
[1772960053978,0.47434105,83.041,82.995,0.47989379]
[1772960054381,0.47434105,83.041,82.998,0.47989379]
[1772960058087,0.1,83.05,83.001,0.47989379]
[1772960059586,0.1,83.05,83.0,0.28432314]
[1772960059587,0.1,83.05,83.004,0.47989379]
[1772960060189,0.35793613,83.049,83.004,0.47989379]
[1772960062472,0.35793613,83.047,83.006,0.47989379]
[1772960064988,0.35793613,83.047,83.008,0.47989379]
[1772960066685,0.35793613,83.047,83.01,0.47989379]
[1772960070885,0.35793613,83.047,83.013,0.47989379]
[1772960074600,0.35793613,83.047,83.015,0.47040283]
[1772960078384,0.35793613,83.045,83.017,0.47040283]
[1772960079292,0.35793613,83.043,83.019,0.47040283]
[1772960080604,0.35793613,83.043,83.021,0.47040283]
[1772960086418,0.35793613,83.043,83.023,0.47040283]
[1772960088724,0.35793613,83.043,83.025,0.47040283]
[1772960089727,0.35793613,83.043,83.026,12.51482265]
[1772960091226,0.35793613,83.043,83.027,0.47040283]
[1772960092809,0.35793613,83.043,83.028,12.04412969]
[1772960094731,0.35793613,83.043,83.023,0.47040283]
[1772960098130,0.35793613,83.045,83.003,0.47040283]
[1772960100220,0.35793613,83.045,83.005,0.47040283]
[1772960101344,0.35793613,83.043,83.007,0.47040283]
[1772960104624,0.35793613,83.043,83.009,0.4934816]
[1772960107226,0.35793613,83.043,83.011,0.4934816]
[1772960110746,0.35793613,83.043,83.013,0.4934816]